bitfinex-derivatives/quotes_ETHF0:USTF0_20250420
["timestamp","ask_amount","ask_price","bid_price","bid_amount"]
[1745116179168,17.90907644,1614.3,1614.2,10.36448]
[1745116180076,17.90907644,1614.3,1614.2,8.13648]
[1745116182277,17.90907644,1614.3,1614.2,10.36448]
[1745116182681,17.90907644,1614.3,1614.2,11.60358]
[1745116182983,17.90907644,1614.3,1614.2,13.32938]
[1745116183177,15.22085568,1614.3,1614.2,13.32938]
[1745116183377,15.22085568,1614.3,1614.2,14.15788]
[1745116183682,15.22085568,1614.3,1614.2,12.91878]
[1745116183979,15.22085568,1614.3,1614.2,14.15788]
[1745116184181,13.58555568,1614.3,1614.2,14.15788]
[1745116185784,13.58555568,1614.3,1614.2,9.2292]
[1745116185974,13.58555568,1614.3,1614.2,14.15788]
[1745116187182,12.34653568,1614.3,1614.2,14.15788]
[1745116187374,12.98169613,1614.3,1614.2,14.15788]
[1745116190085,12.98169613,1614.3,1614.2,14.98052393]
[1745116190782,9.03569613,1614.3,1614.2,14.98052393]
[1745116190983,6.97401899,1614.3,1614.2,14.98052393]
[1745116192885,8.21303899,1614.3,1614.2,14.98052393]
[1745116193186,8.21303899,1614.3,1614.2,14.98073801]
[1745116193582,6.97401899,1614.3,1614.2,14.98073801]
[1745116194390,8.21303899,1614.3,1614.2,14.98073801]
[1745116194686,6.15132896,1614.3,1614.2,14.98073801]
[1745116195980,4.91230896,1614.3,1614.2,14.98073801]
[1745116197083,4.91230896,1614.3,1614.2,14.98088989]
[1745116197480,4.91230896,1614.3,1614.2,14.98093359]
[1745116197888,6.97401899,1614.3,1614.2,14.98093359]
[1745116198090,8.21303899,1614.3,1614.2,14.98093359]
[1745116198285,6.97401899,1614.3,1614.2,14.98093359]
[1745116200092,6.97401899,1614.3,1614.2,14.98101386]
[1745116200783,6.18393582,1614.3,1614.2,14.98101386]
[1745116201087,6.18393582,1614.3,1614.2,25.83301386]
[1745116201993,6.18393582,1614.3,1614.2,25.83285742]
[1745116202188,6.18393582,1614.3,1614.2,25.83285562]
[1745116202389,6.18393582,1614.3,1614.2,25.83285572]
[1745116202787,6.18393582,1614.3,1614.2,25.83286108]
[1745116203194,6.18393582,1614.3,1614.2,25.83268458]
[1745116203697,6.18393582,1614.3,1614.2,25.83266818]
[1745116203893,6.18393582,1614.3,1614.2,25.83266875]
[1745116204293,6.18393582,1614.3,1614.2,20.83266875]
[1745116204596,6.18393582,1614.3,1614.2,20.8326813]
[1745116205093,5.36035467,1614.5,1614.4,1.23894]
[1745116205595,5.36035467,1614.5,1614.4,6.16762]
[1745116205895,5.36035467,1614.5,1614.4,11.90562]
[1745116206081,5.36035467,1614.5,1614.4,14.13362]
[1745116206591,7.05395467,1614.5,1614.4,14.13362]
[1745116208800,9.90648899,1614.5,1614.4,10.92582]
[1745116209191,9.90648899,1614.5,1614.4,14.13362]
[1745116211686,9.90648899,1614.5,1614.4,7.15668]
[1745116211891,10.72488899,1614.5,1614.4,7.15668]
[1745116212099,10.72488899,1614.5,1614.4,2.228]
[1745116212100,15.72488899,1614.5,1614.4,2.228]
[1745116212295,1.23902,1614.3,1614.2,6.10264]
[1745116212493,5.18402,1614.3,1614.2,6.10264]
[1745116212694,5.18402,1614.3,1614.2,11.03132]
[1745116212899,6.93682,1614.3,1614.2,11.03132]
[1745116213094,6.93682,1614.3,1614.2,13.25932]
[1745116213294,6.93682,1614.3,1614.2,14.08224865]
[1745116213494,6.93682,1614.3,1614.2,13.25932]
[1745116213704,6.93682,1614.3,1614.2,14.08225532]
[1745116213999,6.93682,1614.3,1614.2,10.05152]
[1745116214197,6.93682,1614.3,1614.2,10.87444699]
[1745116214405,6.93682,1614.3,1614.2,7.15668]
[1745116217797,25.6320665,1614.3,1614.2,7.15668]
[1745116220906,26.4452665,1614.3,1614.2,7.15668]
[1745116221104,24.38479126,1614.3,1614.2,7.15668]
[1745116223607,24.38479126,1614.3,1614.2,8.39578]
[1745116223904,21.81879126,1614.3,1614.2,8.39578]
[1745116224107,21.81879126,1614.3,1614.2,10.13118]
[1745116224299,20.57977126,1614.3,1614.2,10.13118]
[1745116224605,16.63477126,1614.3,1614.2,13.33898]
[1745116225102,17.87379126,1614.3,1614.2,13.33898]
[1745116225305,16.63477126,1614.3,1614.2,13.33898]
[1745116225500,16.63477126,1614.3,1614.2,14.16126235]
[1745116226305,16.63477126,1614.3,1614.2,14.16129666]
[1745116228110,16.63477126,1614.3,1614.2,14.16120887]
[1745116229308,4.11869458,1614.3,1614.2,14.16120887]
[1745116229803,5.35771458,1614.3,1614.2,14.16120887]
[1745116230001,4.11869458,1614.3,1614.2,14.16120887]
[1745116232017,4.11869458,1614.3,1614.2,10.95340887]
[1745116232309,4.11869458,1614.3,1614.2,14.16120887]
[1745116233111,4.11869458,1614.3,1614.2,9.23252887]
[1745116233305,4.11869458,1614.3,1614.2,14.16120887]
[1745116235615,4.11869458,1614.3,1614.2,14.16140203]
[1745116236615,4.11869458,1614.3,1614.2,14.16142877]
[1745116236814,4.11869458,1614.3,1614.2,10.95362877]
[1745116237115,4.11869458,1614.3,1614.2,14.16142877]
[1745116238915,4.11869458,1614.3,1614.2,10.95362877]
[1745116239111,4.11869458,1614.3,1614.2,14.16142877]
[1745116239306,4.11869458,1614.3,1614.2,13.33898]
[1745116239610,4.11869458,1614.3,1614.2,14.16153481]
[1745116240910,6.17804188,1614.4,1614.3,1.23902]
[1745116241116,0.86525646,1614.4,1614.3,14.55675481]
[1745116241412,6.46e-06,1614.4,1614.3,19.55640691]
[1745116241818,14.58382353,1614.5,1614.4,6.16762]
[1745116242015,14.58382353,1614.5,1614.4,11.94572691]
[1745116242216,14.58382353,1614.5,1614.4,19.17372691]
[1745116242517,11.62904353,1614.5,1614.4,25.02572691]
[1745116242712,7.21511353,1614.5,1614.4,25.02572691]
[1745116242914,14.07644611,1614.7,1614.4,23.78678691]
[1745116243114,14.07644611,1614.7,1614.6,4.44659]
[1745116243413,14.07644611,1614.7,1614.6,5.26879691]
[1745116243608,14.07644611,1614.7,1614.6,11.94557691]
[1745116244912,14.07644611,1614.7,1614.6,16.94404164]
[1745116245112,14.07644611,1614.7,1614.6,11.94404164]
[1745116245723,14.07644611,1614.7,1614.6,7.01536164]
[1745116245914,14.07644611,1614.7,1614.6,12.80330546]
[1745116246220,14.07644611,1614.7,1614.6,18.65530546]
[1745116246820,14.07644611,1614.7,1614.6,18.65505329]
[1745116247817,27.50048929,1615.0,1614.9,1.23856]
[1745116247818,2.9388,1615.0,1614.9,1.23856]
[1745116248123,2.9388,1615.0,1614.9,3.46656]
[1745116248425,2.9388,1615.0,1614.9,8.39524]
[1745116248726,2.9388,1615.0,1614.9,10.06684]
[1745116249022,7.9388,1615.0,1614.9,2.228]
[1745116249219,1.23856,1614.9,1614.8,4.44642]
[1745116249421,4.62836,1614.9,1614.8,9.3751]
[1745116250424,3.3898,1614.9,1614.8,9.3751]
[1745116251827,0.832,1614.9,1614.8,9.3751]
[1745116252026,1.7005,1614.9,1614.8,9.3751]
[1745116252524,3.4386,1614.9,1614.8,9.3751]
[1745116253927,4.67716,1614.9,1614.8,9.3751]
[1745116254825,3.4386,1614.9,1614.8,9.3751]
[1745116255030,3.4386,1614.9,1614.8,4.92868]
[1745116255031,4.67716,1614.9,1614.8,4.92868]
[1745116255228,6.90516,1614.9,1614.8,4.92868]
[1745116256236,4.67716,1614.9,1614.8,4.92868]
[1745116256526,4.67716,1614.9,1614.8,6.16732]
[1745116257427,4.67716,1614.9,1614.8,9.37512]
[1745116258920,4.67716,1614.9,1614.8,6.16732]
[1745116266226,4.67716,1614.9,1614.8,4.92868]
[1745116266935,4.67716,1614.9,1614.8,6.16732]
[1745116267938,4.67716,1614.9,1614.8,9.37512]
[1745116267939,3.4386,1614.9,1614.8,9.37512]
[1745116268228,4.67716,1614.9,1614.8,10.22652]
[1745116268631,1.23854,1615.0,1614.9,1.23851]
[1745116268825,1.23854,1615.0,1614.9,6.16719]
[1745116269025,1.23854,1615.0,1614.9,7.89539]
[1745116269224,2.95554,1615.0,1614.9,7.89539]
[1745116269534,10.03367,1615.1,1615.0,1.23848]
[1745116269833,5.98197,1615.1,1615.0,10.99016]
[1745116270030,3.79928,1615.2,1615.1,1.23841]
[1745116270332,4.67248,1615.2,1615.1,7.78229]
[1745116270531,4.67248,1615.2,1615.1,8.61769]
[1745116271634,2.95548,1615.2,1615.1,8.61769]
[1745116272131,5.66,1615.3,1615.1,8.61769]
[1745116272328,7.77152,1615.3,1615.2,6.16701]
[1745116272527,6.05452,1615.3,1615.2,6.16701]
[1745116273534,6.05452,1615.3,1615.2,4.92868]
[1745116273834,6.05452,1615.3,1615.2,6.16701]
[1745116275329,5.18132,1615.3,1615.2,6.16701]
[1745116275632,5.18132,1615.3,1615.2,6.99101]
[1745116276334,5.18132,1615.3,1615.2,9.21901]
[1745116276830,3.943,1615.3,1615.2,9.21901]
[1745116277027,8.22259841,1615.4,1615.3,1.23825]
[1745116277331,8.22259841,1615.4,1615.3,7.84234558]
[1745116279229,8.22259841,1615.4,1615.3,7.01973]
[1745116279434,8.22259841,1615.4,1615.3,7.84088633]
[1745116279731,9.46077841,1615.4,1615.3,7.01973]
[1745116280042,8.22259841,1615.4,1615.3,7.01973]
[1745116283350,1.23808,1615.6,1615.5,1.2381]
[1745116283835,1.23808,1615.6,1615.5,6.16678]
[1745116284036,1.23808,1615.6,1615.5,6.98648]
[1745116284236,1.23808,1615.6,1615.5,9.21448]
[1745116290054,1.23808,1615.6,1615.5,6.98648]
[1745116290962,1.23808,1615.6,1615.5,7.86308]
[1745116291454,1.23808,1615.6,1615.5,9.53568]
[1745116292163,1.23808,1615.6,1615.5,11.76368]
[1745116293264,2.86438,1615.6,1615.5,11.76368]
[1745116294259,1.23825,1615.3,1615.2,4.44608]
[1745116294456,1.23825,1615.3,1615.2,7.91196]
[1745116295160,3.80645,1615.3,1615.2,10.13996]
[1745116296162,3.80645,1615.3,1615.2,7.91196]
[1745116296461,2.08483,1615.4,1615.3,1.23825]
[1745116296662,2.08483,1615.4,1615.3,7.91193]
[1745116296855,2.08483,1615.4,1615.3,8.77623]
[1745116299965,2.93353,1615.4,1615.3,8.77623]
[1745116307064,2.08483,1615.4,1615.3,8.77623]
[1745116307368,2.08483,1615.4,1615.3,9.62573]
[1745116314475,1.23823,1615.4,1615.3,9.62573]
[1745116315773,1.23823,1615.4,1615.3,10.44839093]
[1745116315974,1.23823,1615.4,1615.3,10.44838487]
[1745116316377,1.23823,1615.4,1615.3,9.62573]
[1745116317280,1.23823,1615.4,1615.3,10.44845469]
[1745116317978,1.23823,1615.4,1615.3,10.44851555]
[1745116318480,1.23823,1615.4,1615.3,9.62573]
[1745116318679,7.39824997,1615.4,1615.3,9.62573]
[1745116318981,7.39824997,1615.4,1615.3,10.44860063]
[1745116319367,7.39824997,1615.4,1615.3,10.44869106]
[1745116319673,7.39824997,1615.4,1615.3,9.62573]
[1745116319880,7.39824997,1615.4,1615.3,10.44868748]
[1745116320382,7.39824997,1615.4,1615.3,10.44876922]
[1745116326687,7.39824997,1615.4,1615.3,10.44957749]
[1745116327988,9.46082841,1615.4,1615.3,10.44957749]
[1745116330587,9.46082841,1615.4,1615.3,10.44956833]
[1745116337292,9.46082841,1615.4,1615.3,10.44958368]
[1745116337492,8.22259841,1615.4,1615.3,10.44957848]
[1745116337692,8.22259841,1615.4,1615.3,9.62573]
[1745116337897,8.22259841,1615.4,1615.3,10.44956028]
[1745116338096,8.22259841,1615.4,1615.3,15.44952493]
[1745116339693,8.22259841,1615.4,1615.3,19.39052493]
[1745116340998,8.22259841,1615.4,1615.3,14.39052493]
[1745116341997,8.22259841,1615.4,1615.3,14.44838084]
[1745116342802,6.18180448,1615.6,1615.4,1.23818]
[1745116343098,6.18180448,1615.6,1615.5,7.04365084]
[1745116343297,6.18180448,1615.6,1615.5,12.85003084]
[1745116343787,7.41982448,1615.6,1615.5,11.96838]
[1745116343990,6.18180448,1615.6,1615.5,12.84981419]
[1745116344190,6.18180448,1615.6,1615.5,15.07781419]
[1745116344591,6.18180448,1615.6,1615.5,15.07772756]
[1745116347596,6.18180448,1615.6,1615.5,11.86992756]
[1745116347805,6.18180448,1615.6,1615.5,15.07772756]
[1745116348202,6.18180448,1615.6,1615.5,14.19638]
[1745116348404,6.18180448,1615.6,1615.5,15.07748245]
[1745116350021,9.17045448,1615.7,1615.6,1.23802]
[1745116350212,9.17045448,1615.7,1615.6,8.69491506]
[1745116354016,9.17045448,1615.7,1615.6,11.90271506]
[1745116357510,9.17045448,1615.7,1615.6,11.0217]
[1745116357717,9.17045448,1615.7,1615.6,11.90286787]
[1745116358919,6.18180448,1615.7,1615.6,11.90286787]
[1745116359118,6.18180448,1615.7,1615.6,12.75806787]
[1745116363421,6.18180448,1615.7,1615.6,12.75865777]
[1745116364826,6.18180448,1615.7,1615.6,13.54706076]
[1745116365217,6.18180448,1615.7,1615.6,13.54750257]
[1745116367126,6.18180448,1615.7,1615.6,13.5484858]
[1745116368925,6.18180448,1615.7,1615.6,10.3406858]
[1745116369129,6.18180448,1615.7,1615.6,13.5484858]
[1745116370525,6.18180448,1615.7,1615.6,10.3406858]
[1745116370827,6.18180448,1615.7,1615.6,13.5484858]
[1745116374030,6.18180448,1615.7,1615.6,13.54848984]
[1745116374821,6.18180448,1615.7,1615.6,10.34068984]
[1745116375130,6.18180448,1615.7,1615.6,13.54848984]
[1745116380330,6.18180448,1615.7,1615.6,13.54853291]
[1745116381633,6.18180448,1615.7,1615.6,13.5485559]
[1745116382127,6.18180448,1615.7,1615.6,13.54855736]
[1745116383530,6.18180448,1615.7,1615.6,13.54857541]
[1745116384935,8.22259841,1615.7,1615.6,13.54857541]
[1745116385328,8.22259841,1615.7,1615.6,13.54859099]
[1745116385736,9.46054841,1615.7,1615.6,13.54859099]
[1745116385936,10.63169841,1615.7,1615.6,12.69339099]
[1745116386237,10.63169841,1615.7,1615.6,12.69340825]
[1745116387436,10.63169841,1615.7,1615.6,12.69343148]
[1745116387639,10.63169841,1615.7,1615.6,9.48563148]
[1745116387836,10.63169841,1615.7,1615.6,12.69343148]
[1745116389139,10.63169841,1615.7,1615.6,12.69351703]
[1745116389842,10.63169841,1615.7,1615.6,7.76483703]
[1745116390140,10.63169841,1615.7,1615.6,12.69351703]
[1745116391140,10.63169841,1615.7,1615.6,12.69352843]
[1745116391342,8.22259841,1615.7,1615.6,12.69352843]
[1745116392748,8.22259841,1615.7,1615.6,9.48572843]
[1745116392931,8.22259841,1615.7,1615.6,12.69352906]
[1745116394445,8.22259841,1615.7,1615.6,12.69353091]
[1745116398150,8.22259841,1615.7,1615.6,11.81010299]
[1745116398350,8.22259841,1615.7,1615.6,12.69353797]
[1745116398547,8.22259841,1615.7,1615.6,12.69353762]
[1745116399249,8.22259841,1615.7,1615.6,12.69353794]
[1745116400936,9.46054841,1615.7,1615.6,12.69353794]
[1745116401141,11.90994841,1615.7,1615.6,12.69353794]
[1745116405351,11.90994841,1615.7,1615.6,12.69354935]
[1745116407151,11.90994841,1615.7,1615.6,11.81010299]
[1745116407355,11.90994841,1615.7,1615.6,12.69356133]
[1745116407849,10.67199841,1615.7,1615.6,12.69356133]
[1745116408153,10.67199841,1615.7,1615.6,9.48576133]
[1745116408353,10.67199841,1615.7,1615.6,12.69356133]
[1745116408556,11.90994841,1615.7,1615.6,12.69356133]
[1745116408746,11.90994841,1615.7,1615.6,9.48576133]
[1745116409052,10.67199841,1615.7,1615.6,12.69354866]
[1745116409644,9.03409841,1615.7,1615.6,12.69354866]
[1745116409849,8.22259841,1615.7,1615.6,13.49314866]
[1745116411052,8.22259841,1615.7,1615.6,13.49314832]
[1745116413660,8.22259841,1615.7,1615.6,10.28534832]
[1745116413858,8.22259841,1615.7,1615.6,13.49314832]
[1745116414463,9.46054841,1615.7,1615.6,13.49314832]
[1745116414660,9.46054841,1615.7,1615.6,12.60970299]
[1745116414858,11.09964841,1615.7,1615.6,13.49314023]
[1745116415062,2.87705,1615.7,1615.6,13.49314023]
[1745116415362,2.87705,1615.7,1615.6,13.49314017]
[1745116415764,1.6391,1615.7,1615.6,13.49314017]
[1745116417465,20.35201867,1615.8,1615.7,1.23795]
[1745116417663,20.35201867,1615.8,1615.7,9.58757017]
[1745116418065,15.62003867,1615.8,1615.7,15.43957017]
[1745116418362,3.27e-06,1615.8,1615.7,27.43607017]
[1745116418563,3.27e-06,1615.8,1615.7,27.43444549]
[1745116419566,3.27e-06,1615.8,1615.7,27.93411581]
[1745116420466,3.27e-06,1615.8,1615.7,27.9331932]
[1745116422874,3.27e-06,1615.8,1615.7,31.1409932]
[1745116423072,4.1214904,1616.3,1615.8,6.18937]
[1745116423368,5.8595904,1616.3,1616.2,4.44536]
[1745116423565,5.8595904,1616.3,1616.2,5.32624989]
[1745116423872,4.1214904,1616.3,1616.2,10.25492989]
[1745116424264,4.1214904,1616.3,1616.2,12.73122989]
[1745116424464,4.1214904,1616.3,1616.2,13.51683013]
[1745116425063,4.1214904,1616.3,1616.2,15.74483013]
[1745116425770,4.1214904,1616.3,1616.2,15.74234211]
[1745116426671,4.1214904,1616.3,1616.2,12.02848211]
[1745116426872,12.0848804,1616.3,1616.2,3.01360024]
[1745116427173,14.3128804,1616.3,1616.2,0.78560024]
[1745116427372,10.19139,1616.3,1616.0,4.44548]
[1745116427570,1.23764,1616.1,1616.0,9.37416]
[1745116427776,4.58213,1616.2,1616.1,1.23764]
[1745116427978,4.58213,1616.2,1616.1,6.16632]
[1745116428175,6.81013,1616.2,1616.1,6.16632]
[1745116429475,6.81013,1616.2,1616.1,7.84432]
[1745116433177,6.81013,1616.2,1616.1,4.92868]
[1745116433678,1.23764,1616.1,1616.0,4.44545]
[1745116433879,2.95484,1616.1,1616.0,9.37413]
[1745116434070,5.18284,1616.1,1616.0,9.37413]
[1745116434580,3.9452,1616.1,1616.0,9.37413]
[1745116436178,2.228,1616.1,1616.0,10.25273968]
[1745116436576,2.228,1616.1,1616.0,11.03798452]
[1745116437980,2.228,1616.1,1616.0,14.97598452]
[1745116438179,0.8206,1616.2,1616.1,1.23764]
[1745116438379,0.8206,1616.2,1616.1,9.63492968]
[1745116438676,0.8206,1616.2,1616.1,10.42017452]
[1745116438876,2.5773,1616.2,1616.1,10.42017452]
[1745116439082,4.8053,1616.2,1616.1,10.42017452]
[1745116439284,4.8053,1616.2,1616.1,10.42042399]
[1745116443277,3.0486,1616.2,1616.1,10.42042399]
[1745116443479,3.0486,1616.2,1616.1,11.25262399]
[1745116444375,2.228,1616.2,1616.1,11.25340062]
[1745116449886,2.228,1616.2,1616.1,11.25503369]
[1745116450886,2.228,1616.2,1616.1,11.25733216]
[1745116451988,2.228,1616.2,1616.1,11.25730392]
[1745116452287,2.228,1616.2,1616.1,14.46510392]
[1745116455791,2.228,1616.2,1616.1,14.46520677]
[1745116457186,1.6758,1616.3,1616.2,1.23756]
[1745116457388,1.6758,1616.3,1616.2,8.70488346]
[1745116457793,1.6758,1616.3,1616.2,9.49242677]
[1745116458189,2.93853,1616.4,1616.3,1.23749]
[1745116458488,2.93853,1616.4,1616.3,12.70036893]
[1745116458489,4.64673,1616.4,1616.3,12.70036893]
[1745116459091,6.87473,1616.4,1616.3,12.70036893]
[1745116459296,3.068,1616.4,1616.3,12.70036893]
[1745116459495,3.068,1616.4,1616.3,11.91282916]
[1745116459691,3.068,1616.4,1616.3,12.70062661]
[1745116460190,11.174426,1616.5,1616.4,1.23741]
[1745116460383,11.174426,1616.5,1616.4,9.57714398]
[1745116460594,11.174426,1616.5,1616.4,10.36494661]
[1745116461383,11.174426,1616.5,1616.4,10.36485946]
[1745116462890,4.9921904,1616.5,1616.4,10.36485946]
[1745116463290,4.9921904,1616.5,1616.4,10.36482777]
[1745116465292,7.0529356,1616.5,1616.4,10.36482777]
[1745116465492,7.4195656,1616.5,1616.4,2.90664777]
[1745116465698,15.7122656,1616.5,1616.4,1.66923777]
[1745116465999,15.7122656,1616.5,1616.4,0.78780263]
[1745116466189,1.23741,1616.4,1616.3,4.44524]
[1745116466390,2.86411,1616.4,1616.3,10.25561959]
[1745116466785,2.86411,1616.4,1616.3,11.04365326]
[1745116467098,2.86411,1616.4,1616.3,11.04376834]
[1745116468101,5.09211,1616.4,1616.3,11.04376834]
[1745116468696,13.3350908,1616.4,1616.3,11.04376834]
[1745116469103,11.1070908,1616.4,1616.3,11.04376834]
[1745116470297,13.3350908,1616.4,1616.3,6.11508834]
[1745116470603,22.2720908,1616.4,1616.3,0.78803367]
[1745116471609,1.23756,1616.2,1616.1,4.44542]
[1745116471794,1.23756,1616.2,1616.1,10.2351156]
[1745116471993,1.23756,1616.2,1616.1,11.02330665]
[1745116472194,6.04386,1616.2,1616.1,11.02330665]
[1745116472692,6.04386,1616.2,1616.1,11.02318204]
[1745116473403,3.81586,1616.2,1616.1,12.66168204]
[1745116474602,3.81586,1616.2,1616.1,12.66147136]
[1745116476307,10.00146231,1616.2,1616.1,12.66147136]
[1745116478006,8.28596231,1616.2,1616.1,12.66120952]
[1745116478209,8.28596231,1616.2,1616.1,13.48630952]
[1745116478409,7.42316231,1616.2,1616.1,13.48630952]
[1745116479307,7.42316231,1616.2,1616.1,13.48624996]
[1745116481704,6.18560231,1616.2,1616.1,13.48624996]
[1745116484207,10.31179148,1616.2,1616.1,13.48624996]
[1745116484709,10.31179148,1616.2,1616.1,13.4861038]
[1745116485808,10.31179148,1616.2,1616.1,8.5574238]
[1745116486011,11.54935148,1616.2,1616.1,13.48608467]
[1745116487908,10.31179148,1616.2,1616.1,13.48608467]
[1745116488711,6.18560231,1616.2,1616.1,13.48608467]
[1745116489113,7.42316231,1616.2,1616.1,13.48608467]
[1745116489711,7.42316231,1616.2,1616.1,13.48612091]
[1745116490813,6.18560231,1616.2,1616.1,13.48612091]
[1745116491112,8.41360231,1616.2,1616.1,13.48612091]
[1745116491704,8.41360231,1616.2,1616.1,13.48633856]
[1745116491914,8.41360231,1616.2,1616.1,10.27853856]
[1745116492115,6.18560231,1616.2,1616.1,13.48633856]
[1745116492918,6.18560231,1616.2,1616.1,10.27853856]
[1745116493210,6.18560231,1616.2,1616.1,13.48633856]
[1745116493410,7.42316231,1616.2,1616.1,13.48633856]
[1745116493615,6.18560231,1616.2,1616.1,13.48633856]
[1745116495306,6.18560231,1616.2,1616.1,12.62589105]
[1745116495513,6.18560231,1616.2,1616.1,13.486892]
[1745116495714,10.31202804,1616.2,1616.1,13.486892]
[1745116496114,11.54958804,1616.2,1616.1,13.486892]
[1745116496418,11.54958804,1616.2,1616.1,13.4872058]
[1745116497823,10.31202804,1616.2,1616.1,13.4872058]
[1745116498417,11.54958804,1616.2,1616.1,13.4872058]
[1745116499119,7.42316231,1616.2,1616.1,13.4872058]
[1745116502321,6.18560231,1616.2,1616.1,13.4872058]
[1745116502521,7.42316231,1616.2,1616.1,13.4872058]
[1745116504131,7.42316231,1616.2,1616.1,13.48758258]
[1745116504735,6.18560231,1616.2,1616.1,13.48758258]
[1745116505130,6.18560231,1616.2,1616.1,19.33958258]
[1745116507926,6.18560231,1616.2,1616.1,19.33924218]
[1745116508225,4.12687351,1616.3,1616.2,1.23756]
[1745116508424,4.12687351,1616.3,1616.2,9.57338218]
[1745116508636,4.12687351,1616.3,1616.2,13.51038218]
[1745116509433,4.12687351,1616.3,1616.2,13.51023347]
[1745116509733,4.12687351,1616.3,1616.2,13.51023313]
[1745116510031,4.12687351,1616.3,1616.2,9.57323313]
[1745116510333,5.36436351,1616.3,1616.2,9.57323313]
[1745116510634,7.78236351,1616.3,1616.2,7.81563313]
[1745116510837,7.78236351,1616.3,1616.2,7.81570177]
[1745116511131,10.01036351,1616.3,1616.2,7.81570477]
[1745116511534,10.01036351,1616.3,1616.2,6.57814477]
[1745116511724,15.01036351,1616.3,1616.2,1.64946477]
[1745116512536,15.01036351,1616.3,1616.2,1.64948638]
[1745116512838,15.01036351,1616.3,1616.2,2.88704638]
[1745116513135,10.01036351,1616.3,1616.2,2.88704638]
[1745116513536,10.01036351,1616.3,1616.2,2.88701911]
[1745116515242,7.78236351,1616.3,1616.2,2.88701911]
[1745116515536,7.78236351,1616.3,1616.2,2.88700403]
[1745116515939,11.8984708,1616.3,1616.2,2.88700403]
[1745116516141,14.1264708,1616.3,1616.2,2.88700403]
[1745116516735,12.5281708,1616.3,1616.2,7.81568403]
[1745116517042,12.5281708,1616.3,1616.2,10.29298403]
[1745116517233,10.3001708,1616.3,1616.2,10.29294484]
[1745116517742,11.9256708,1616.3,1616.2,10.29294484]
[1745116518341,11.9256708,1616.3,1616.2,10.2929587]
[1745116519740,11.9256708,1616.3,1616.2,9.43173105]
[1745116519935,11.9256708,1616.3,1616.2,10.29296336]
[1745116520141,11.9256708,1616.3,1616.2,9.43173105]
[1745116521031,11.9256708,1616.3,1616.2,10.29293726]
[1745116522135,11.9256708,1616.3,1616.2,9.43173105]
[1745116522341,11.9256708,1616.3,1616.2,10.29295515]
[1745116522639,11.9256708,1616.3,1616.2,10.29294632]
[1745116523647,10.3001708,1616.3,1616.2,10.29294632]
[1745116526050,10.3001708,1616.3,1616.2,10.29295553]
[1745116529050,10.3001708,1616.3,1616.2,10.29295913]
[1745116529755,10.3001708,1616.3,1616.2,10.2929661]
[1745116531749,10.3001708,1616.3,1616.2,13.5007661]
[1745116535448,8.2429808,1616.3,1616.2,13.50080658]
[1745116536163,8.2429808,1616.3,1616.2,15.72880658]
[1745116537061,6.19026949,1616.3,1616.2,15.72880658]
[1745116538158,6.19026949,1616.3,1616.2,13.50080658]
[1745116541351,6.19026949,1616.4,1616.3,1.23749]
[1745116541550,6.19026949,1616.4,1616.3,8.74044553]
[1745116541759,6.19026949,1616.4,1616.3,9.52863658]
[1745116546757,6.19026949,1616.4,1616.3,8.66736105]
[1745116547056,6.19026949,1616.4,1616.3,9.52836077]
[1745116547762,6.19026949,1616.4,1616.3,9.52834092]
[1745116548362,6.19026949,1616.4,1616.3,12.73614092]
[1745116548561,6.19026949,1616.4,1616.3,12.73613672]
[1745116550266,6.19026949,1616.4,1616.3,9.52833672]
[1745116550466,6.19026949,1616.4,1616.3,12.73613026]
[1745116555464,6.19026949,1616.4,1616.3,16.67218591]
[1745116556170,10.31509019,1616.4,1616.3,16.67215758]
[1745116557155,10.31509019,1616.4,1616.3,22.52415758]
[1745116557967,10.31509019,1616.4,1616.3,21.66316105]
[1745116558167,10.31509019,1616.4,1616.3,22.52417112]
[1745116559877,10.31509019,1616.4,1616.3,22.52420084]
[1745116560271,10.31509019,1616.5,1616.4,1.23741]
[1745116560472,10.31509019,1616.5,1616.4,9.63656719]
[1745116560773,10.31509019,1616.5,1616.4,10.42475795]
[1745116560962,10.31509019,1616.5,1616.4,11.26545795]
[1745116561372,10.31509019,1616.5,1616.4,11.26550346]
[1745116563172,10.31509019,1616.5,1616.4,13.49352184]
[1745116564186,10.31509019,1616.5,1616.4,11.26552184]
[1745116564390,6.19026949,1616.5,1616.4,11.26552184]
[1745116565683,7.42759949,1616.5,1616.4,8.31131184]
[1745116565984,1.23741,1616.4,1616.3,5.852]
[1745116566180,5.16821,1616.4,1616.3,5.852]
[1745116566379,10.16821,1616.4,1616.3,5.852]
[1745116568793,1.23749,1616.3,1616.2,1.23756]
[1745116568992,4.56619,1616.3,1616.2,6.16624]
[1745116569390,4.56619,1616.3,1616.2,4.92868]
[1745116569792,4.56619,1616.3,1616.2,6.16624]
[1745116572093,12.81616536,1616.3,1616.2,6.16624]
[1745116574093,12.81616536,1616.3,1616.2,9.37404]
[1745116575386,10.75237423,1616.3,1616.2,9.37404]
[1745116575693,7.88438423,1616.3,1616.2,9.37404]
[1745116575895,9.12187423,1616.3,1616.2,10.16964]
[1745116576097,7.88438423,1616.3,1616.2,10.16964]
[1745116576494,9.12187423,1616.3,1616.2,10.16964]
[1745116577198,9.12187423,1616.3,1616.2,11.60204]
[1745116577398,10.82227423,1616.3,1616.2,11.60204]
[1745116577895,10.82227423,1616.3,1616.2,12.42844816]
[1745116578096,9.58478423,1616.3,1616.2,14.06434816]
[1745116578287,9.58478423,1616.3,1616.2,14.84396118]
[1745116578896,9.58478423,1616.3,1616.2,14.01755302]
[1745116579094,9.58478423,1616.3,1616.2,11.78955302]
[1745116579498,10.82227423,1616.3,1616.2,11.78955302]
[1745116579897,10.82227423,1616.3,1616.2,12.61592126]
[1745116580089,10.82227423,1616.3,1616.2,12.61592136]
[1745116580596,10.82227423,1616.3,1616.2,11.78955302]
[1745116581692,10.82227423,1616.3,1616.2,12.61589146]
[1745116582092,10.82227423,1616.3,1616.2,14.84389146]
[1745116582898,10.82227423,1616.3,1616.2,14.01755302]
[1745116583102,10.82227423,1616.3,1616.2,11.78955302]
[1745116583600,10.82227423,1616.3,1616.2,8.58175302]
[1745116583799,10.82227423,1616.3,1616.2,12.61587028]
[1745116585293,10.82227423,1616.3,1616.2,12.61592088]
[1745116586495,7.01008423,1616.3,1616.2,12.61592088]
[1745116586794,7.01008423,1616.3,1616.2,13.43682088]
[1745116587599,8.24757423,1616.3,1616.2,13.43682088]
[1745116587902,8.24757423,1616.3,1616.2,12.61045302]
[1745116588202,8.24757423,1616.3,1616.2,13.43699105]